fUSD/lending_fUSD_20240612
["ID","MTS","AMOUNT","RATE_DAILY","PERIOD"]
[329280903,1718213449603,-3232.05217196,0.00029995,2]
[329280906,1718213449619,-157.90322973,0.00029995,7]
[329280908,1718213449632,-4778.74629387,0.00029995,2]
[329280910,1718213449645,-500.0,0.00029997,2]
[329280913,1718213449663,-150.0,0.00029997,2]
[329280915,1718213449678,-150.0,0.00029997,2]
[329280917,1718213449694,-2336.78675648,0.00029998,2]
[329280919,1718213449708,-34099.82291342,0.00029998,2]
[329280920,1718213449721,-2687.13170989,0.00029998,2]
[329280923,1718213449742,-37925.36842318,0.00029998,2]
[329280924,1718213449759,-19719.65764171,0.00029998,2]
[329280926,1718213449771,-12722.62581492,0.00029998,3]
[329280928,1718213449785,-9699.53406065,0.00029998,2]
[329280930,1718213449802,-2501.16531421,0.00029998,2]
[329280933,1718213449825,-326.20621405,0.00029998,2]
[329280935,1718213449840,-185.16055747,0.00029998,2]
[329280937,1718213449858,-1074.35071822,0.00029999,2]
[329280939,1718213449881,-376.24771059,0.00029999,2]
[329280942,1718213449902,-209.87789341,0.00029999,2]
[329280943,1718213449927,-298.64615432,0.00029999,2]
[329280946,1718213449942,-500.0,0.00029999,2]
[329280948,1718213449963,-500.0,0.00029999,2]
[329280950,1718213449986,-500.0,0.00029999,2]
[329280953,1718213450012,-500.0,0.00029999,2]
[329280955,1718213450030,-500.0,0.00029999,2]
[329280957,1718213450049,-517.32287921,0.00029999,2]
[329280959,1718213450062,-500.0,0.00029999,2]
[329280961,1718213450078,-3000.0,0.00029999,2]
[329280963,1718213450097,-229.54194228,0.0003,5]
[329280966,1718213450114,-107512.61852719,0.0003,13]
[329280968,1718213450153,-2017.62724224,0.0003,13]
[329280970,1718213450173,-2117.25887764,0.0003,13]
[329280972,1718213450193,-466.70474391,0.0003,13]
[329281921,1718213467371,-226.74152349,0.00022498,2]
[329281922,1718213467441,-500.0,0.00026504,2]
[329281923,1718213467483,-200.0,0.00027,2]
[329281924,1718213467525,-162.12,0.00027397,2]
[329281925,1718213467564,-2013.69130441,0.00028498,2]
[329281926,1718213467594,-206.45,0.00029233,10]
[329281927,1718213467623,-289.98015035,0.00029243,2]
[329281928,1718213467650,-96401.01702175,0.00029243,2]
[329281929,1718213492670,-1679.5795,0.00019351,2]
[329281930,1718213511603,98320.4205,0.00019351,2]
[329281931,1718213511634,3184.01,0.00019351,2]
[329281932,1718213513908,-2547.81,0.00019351,2]
[329281933,1718213543437,155.0,0.00017259,2]
[329281934,1718213566301,-443985.91918004,0.00019351,2]
[329281935,1718213566333,-289.98015035,0.00019351,2]
[329281936,1718213566362,-549.50595062,0.00023394,2]
[329281937,1718213580559,289.56461998,0.00017259,2]
[329281938,1718213581703,150.0,0.00019725,2]
[329281939,1718213582583,210.0,0.00021698,2]
[329281940,1718213585603,103525.03009901,0.00017259,2]
[329281941,1718213585636,2635.94,0.00017259,2]
[329281942,1718213607105,203.60773734,0.00031866,30]
[329281943,1718213624357,487356.98370491,0.00014,2]
[329281944,1718213624422,684634.81469412,0.00014,2]
[329281945,1718213626695,233.34685552,0.00031866,30]
[329281946,1718213626841,481.6681847,0.00031866,30]
[329281947,1718213626889,999.999996,0.00031866,120]
[329281948,1718213628102,525.31711583,0.00031866,60]
[329281949,1718213628204,359.9869598,0.00031866,30]
[329281950,1718213630540,832.038521,0.00031866,30]
[329281951,1718213636502,839.89435685,0.00031866,120]
[329281952,1718213639209,1426.76292833,0.00031866,30]
[329281953,1718213639365,696.74292591,0.00031866,30]
[329281954,1718213642523,2697.65564489,0.00031866,30]
[329281955,1718213648873,187.89692834,0.00031866,120]
[329281956,1718213656626,1232.74764711,0.00031866,120]
[329281957,1718213658045,572.02929063,0.00031866,30]
[329281958,1718213658499,998.78281587,0.00031866,120]
[329281959,1718213659081,1016.42497376,0.00031866,120]
[329281960,1718213665795,814.98274506,0.00031866,30]
[329281961,1718213673454,822.77790146,0.00031866,30]
[329281962,1718213675168,657.89728419,0.00031866,30]
[329281963,1718213675968,304.27041695,0.00031866,120]
[329281964,1718213680799,619.91154445,0.00031866,120]
[329281965,1718213684433,1152.13246204,0.00031866,60]
[329281966,1718213688099,2640.89601505,0.00031866,30]
[329281967,1718213688135,196.86939784,0.00031866,30]
[329281968,1718213688633,915.57384331,0.00031866,30]
[329281969,1718213689278,282.79513671,0.00031866,120]
[329281970,1718213703153,939.6602095,0.00031866,120]
[329281971,1718213706410,332.12336536,0.00031866,30]
[329281972,1718213713086,984.77089334,0.00031866,30]
[329281973,1718213737169,500.0,0.00031866,30]
[329281974,1718213742498,463.75760284,0.00031866,120]
[329281975,1718213752169,692.5859032,0.00031866,120]
[329281976,1718213773149,1503.2093139,0.00031866,120]
[329281977,1718213773667,565.39702894,0.00031866,120]
[329281978,1718213777833,1052.44206432,0.00031866,120]
[329281979,1718213778709,349.97781063,0.00031866,120]
[329281980,1718213787717,186.68272029,0.00031866,120]
[329281981,1718213788138,197.68066274,0.00031866,120]
[329281982,1718213788819,565.73896705,0.00031866,120]
[329281983,1718213793370,3265.0717552,0.00031866,120]
[329281984,1718213799853,617.4958242,0.00031866,120]
[329281985,1718213803903,348.3565015,0.00031866,120]
[329281986,1718213809292,445.08921201,0.00031866,120]
[329281987,1718213810003,842.17401224,0.00031866,30]
[329281988,1718213828843,942.85853087,0.00031866,120]
[329281989,1718213831244,192.49991478,0.00031866,30]
[329281990,1718213832912,302.78002778,0.00031866,120]
[329281991,1718213833873,949.8297375,0.00031866,30]
[329281992,1718213834375,421.78778348,0.00031866,30]
[329281993,1718213834745,816.18002493,0.00031866,120]
[329281994,1718213835003,626.91997702,0.00031866,120]
[329281995,1718213835129,252.13660241,0.00031866,30]
[329281996,1718213835207,274.95646758,0.00031866,120]
[329281997,1718213835276,3287.75044355,0.00031866,90]
[329281998,1718213835336,2300.2141892,0.00031866,60]
[329281999,1718213835511,499.4918651,0.00031866,120]
[329282000,1718213835997,2185.82830243,0.00031866,30]
[329282001,1718213836083,898.06425275,0.00031866,120]
[329282002,1718213836177,1369.8697028,0.00031866,30]
[329282003,1718213836796,2243.187102,0.00031866,120]
[329282004,1718213836897,3149.04668809,0.00031866,30]
[329282005,1718213837603,1388.26899939,0.00031866,30]
[329282006,1718213838310,1090.0497398,0.00031866,30]
[329282007,1718213838948,905.06864901,0.00031866,120]
[329282008,1718213839211,676.42767024,0.00031866,30]
[329282009,1718213839539,285.4073748,0.00031866,30]
[329282010,1718213839608,168.29344157,0.00031866,120]
[329282011,1718213839667,2068.90185321,0.00031866,30]
[329282012,1718213839913,205.87466831,0.00031866,120]
[329282013,1718213840122,2524.87354862,0.00031866,120]
[329282014,1718213842685,1044.42034318,0.00031866,120]
[329282015,1718213843680,1651.32538208,0.00031866,120]
[329282016,1718213848630,160.0,0.00031866,30]
[329282020,1718213931577,-646.04365935,0.00014897,2]
[329282021,1718213931621,-424.4611634,0.00014898,2]
[329282022,1718213931662,-155.0,0.00014899,2]
[329282023,1718213931705,-491.82806494,0.000149,2]
[329282024,1718213931741,-219.61,0.00014904,3]
[329282025,1718213931781,-203.53679617,0.00014998,2]
[329282026,1718213931817,-3565.22156148,0.00014998,2]
[329282027,1718213931850,-529.82691404,0.00014998,2]
[329282028,1718213931884,-10973.78387867,0.00014998,2]
[329282029,1718213931919,-155.79493741,0.00014998,2]
[329282030,1718213931952,-209.00461836,0.00014998,2]
[329282031,1718213931985,-155.17031669,0.00014998,2]
[329282032,1718213932020,-155.38397192,0.00014998,2]
[329282033,1718213932058,-155.41908413,0.00014998,2]
[329282034,1718213932093,-217.1710123,0.00014998,2]
[329282035,1718213932130,-176.41950673,0.00014998,2]
[329282036,1718213932162,-155.0,0.00014998,2]
[329282037,1718213932195,-1499.65932417,0.00014998,2]
[329282038,1718213932232,-155.0,0.00014998,2]
[329282039,1718213932269,-480.88976442,0.00014998,2]
[329282040,1718213932311,-691612.51820852,0.00014999,2]
[329282041,1718213932351,-342663.2572173,0.00015,2]
[329282043,1718214131992,859.3,0.00024329,30]
[329282044,1718214191967,177.17138992,0.0001398,2]
[329282045,1718214227205,289.98015035,0.0001398,2]
[329282046,1718214228233,948.1605804,0.0001398,2]
[329282047,1718214238485,548038.15968004,0.0001398,2]
[329282048,1718214243242,289.56461998,0.0001398,2]
[329282049,1718214246246,550.52051443,0.0001398,2]
[329282050,1718214252489,509468.10930941,0.0001398,2]
[329282051,1718214379454,345.05,0.00012164,2]
[329282052,1718214484730,-155.0,0.00014063,2]
[329282053,1718214484755,-155.0,0.00014063,2]
[329282054,1718214484779,-155.0,0.00014064,2]
[329282055,1718214484804,-536.19769862,0.00014065,2]
[329282056,1718214484828,-155.0,0.00014065,2]
[329282057,1718214484853,-725.97,0.00014082,2]
[329282058,1718214484887,-840.58,0.00014082,2]
[329282059,1718214484912,-156.96,0.00014082,2]
[329282060,1718214484935,-3676.16,0.00014195,2]
[329282061,1718214484961,-345.05,0.00014428,2]
[329282062,1718214484984,-172.09388851,0.000149,2]
[329282063,1718214485007,-176.24870704,0.000149,2]
[329282064,1718214485034,-1716.79702518,0.000149,2]
[329282065,1718214485061,-9584.90205119,0.000149,2]
[329282066,1718214485086,-150.0,0.00014959,2]
[329282067,1718214485111,-151.93,0.0001499,2]
[329282068,1718214485140,-168.3692821,0.0001499,2]
[329282069,1718214485164,-1246.38219162,0.00014997,2]
[329282070,1718214485192,-499.99,0.00014997,2]
[329282071,1718214485221,-306.53561288,0.00014998,2]
[329282072,1718214485247,-166.72253563,0.00014998,2]
[329282073,1718214485275,-155.35331114,0.00014998,2]
[329282074,1718214485300,-162.52861424,0.00014998,2]
[329282075,1718214485324,-172.29752431,0.00014998,2]
[329282076,1718214485349,-180.02417932,0.00014998,2]
[329282077,1718214485379,-179.89516541,0.00014998,2]
[329282078,1718214485403,-156.7372281,0.00014998,2]
[329282079,1718214485429,-156.85861452,0.00014998,2]
[329282080,1718214485455,-206.54544582,0.00014998,2]
[329282081,1718214485485,-446.80079403,0.00014998,2]
[329282082,1718214485516,-155.0,0.00014998,2]
[329282083,1718214485544,-241.59005071,0.00014998,2]
[329282084,1718214485571,-833.47563894,0.00014998,2]
[329282085,1718214485598,-155.0,0.00014998,2]
[329282086,1718214485628,-156.45668317,0.00014999,2]
[329282087,1718214485653,-9917.27745119,0.00014999,2]
[329282088,1718214485681,-825.74,0.00014999,2]
[329282089,1718214485708,-1605.45,0.00014999,2]
[329282090,1718214485751,-963052.08030633,0.00015,2]
[329282101,1718214632932,-162.36595756,0.00014897,2]
[329282102,1718214632942,-2823.75635135,0.00014995,2]
[329282103,1718214632954,-646.04365935,0.00014996,2]
[329282104,1718214632964,-542.2859949,0.00014996,2]
[329282105,1718214632975,-1625.52061624,0.00014998,2]
[329282106,1718214632987,-2351.166636,0.00014998,2]
[329282107,1718214633000,-161.63825425,0.00014998,2]
[329282108,1718214633012,-234.66667933,0.00014998,2]
[329282109,1718214633022,-162.67638864,0.00014998,2]
[329282110,1718214633033,-155.0,0.00014998,2]
[329282111,1718214633044,-155.0,0.00014998,2]
[329282112,1718214633056,-201.70944499,0.00014998,2]
[329282113,1718214633068,-163.3366024,0.00014998,2]
[329282114,1718214633078,-210.482296,0.00014998,2]
[329282115,1718214633089,-1704.3339752,0.00014998,2]
[329282116,1718214633152,-490.68501663,0.00014998,2]
[329282117,1718214633165,-268.79574159,0.00014998,2]
[329282118,1718214633176,-506.89879856,0.00014998,2]
[329282119,1718214633187,-166.69758772,0.00014998,2]
[329282120,1718214633199,-263.89187326,0.00014998,2]
[329282121,1718214633210,-59.40486657,0.00014999,2]
[329282122,1718214633224,-113.63977963,0.00014999,2]
[329282123,1718214633235,-202.2218218,0.00014999,2]
[329282124,1718214633246,-158.26702422,0.00014999,2]
[329282125,1718214633258,-235.97802269,0.00014999,2]
[329282126,1718214633269,-183.97791029,0.00014999,2]
[329282127,1718214633280,-435.9304127,0.00015,2]
[329282128,1718214633433,-115118.63625749,0.00015,2]
[329282129,1718214633446,-875.15807274,0.00015,2]
[329282130,1718214633460,-1031.62934149,0.00015,2]
[329282131,1718214633566,-5669.67267634,0.00015,2]
[329282164,1718214634082,-1209.45727771,0.00015,2]
[329282166,1718214634096,-232837.4422956,0.00015,2]
[329282168,1718214634106,-304.72602707,0.00015,2]
[329282171,1718214634116,-306.51547453,0.00015,2]
[329282173,1718214634127,-155.20156601,0.00015,2]
[329282175,1718214634137,-4898.43,0.00015,2]
[329282176,1718214634147,-210.0,0.00015613,2]
[329282178,1718214634158,-9584.90205119,0.00016264,2]
[329282180,1718214634168,-1806.44529912,0.000165,2]
[329282182,1718214634179,-250.0,0.00016648,2]
[329282184,1718214634189,-345.05,0.00016692,2]
[329282186,1718214634200,-293.74,0.00016692,2]
[329282188,1718214634210,-171.23,0.00016761,2]
[329282190,1718214634221,-2445.45,0.00017029,2]
[329282192,1718214634231,-1716.79702515,0.00017043,2]
[329282194,1718214634242,-10076.5,0.00017043,2]
[329282196,1718214634252,-792.73133039,0.00017055,2]
[329282198,1718214634263,-338.57,0.00017497,2]
[329282200,1718214634273,-999.99,0.00017534,2]
[329282202,1718214634284,-1573.34,0.00017622,2]
[329282204,1718214634295,-250.0,0.00017622,2]
[329282206,1718214634305,-9584.90205119,0.00017627,2]
[329282208,1718214634315,-8939.92297153,0.00017807,2]
[329282210,1718214634326,-315.82992977,0.000179,2]
[329282212,1718214634336,-10502.12347737,0.00018,2]
[329282214,1718214634347,-797.84849977,0.00018,2]
[329282216,1718214634357,-155.45,0.00018291,2]
[329282218,1718214634368,-155.45,0.00018609,2]
[329282220,1718214634378,-155.45,0.00018926,2]
[329282222,1718214634388,-345.05,0.00018956,2]
[329282224,1718214634399,-9584.90205119,0.00018991,2]
[329282226,1718214634410,-155.49683224,0.00019,2]
[329282228,1718214634421,-155.34027237,0.00019,2]
[329282230,1718214634432,-200.02,0.00019011,2]
[329282232,1718214634443,-30022.13987934,0.0001908,2]
[329282234,1718214634454,-500.0,0.00019178,2]
[329282236,1718214634464,-500.0,0.00019178,2]
[329282238,1718214634475,-500.0,0.00019178,2]
[329282240,1718214634486,-10181.66154644,0.00019178,2]
[329282242,1718214634497,-500.0,0.00019178,2]
[329282244,1718214634509,-500.0,0.00019178,2]
[329282246,1718214634520,-221.77542531,0.00019178,2]
[329282249,1718214634532,-500.0,0.00019178,2]
[329282251,1718214634543,-500.0,0.00019178,2]
[329282253,1718214634556,-500.0,0.00019178,2]
[329282254,1718214634568,-500.0,0.00019178,2]
[329282257,1718214634580,-500.0,0.00019178,2]
[329282259,1718214634592,-500.0,0.00019178,2]
[329282261,1718214634603,-500.0,0.00019178,2]
[329282263,1718214634614,-500.0,0.00019178,2]
[329282265,1718214634626,-500.0,0.00019178,2]
[329282267,1718214634637,-150.0,0.00019178,2]
[329282269,1718214634651,-500.0,0.00019178,2]
[329282270,1718214634662,-500.0,0.00019178,2]
[329282273,1718214634675,-500.0,0.00019178,2]
[329282275,1718214634687,-500.0,0.00019178,2]
[329282277,1718214634700,-500.0,0.00019178,2]
[329282279,1718214634711,-500.0,0.00019178,2]
[329282281,1718214634723,-500.0,0.00019178,2]
[329282282,1718214634734,-500.0,0.00019178,2]
[329282283,1718214634744,-500.0,0.00019178,2]
[329282284,1718214634769,-500.0,0.00019178,2]
[329282285,1718214634780,-500.0,0.00019178,2]
[329282286,1718214634792,-490.17487673,0.00019178,2]
[329282287,1718214634803,-500.0,0.00019178,2]
[329282288,1718214634814,-500.0,0.00019178,2]
[329282289,1718214634824,-500.0,0.00019178,2]
[329282290,1718214634835,-500.0,0.00019178,2]
[329282291,1718214634846,-513.35259476,0.00019178,2]
[329282292,1718214634857,-500.0,0.00019178,2]
[329282293,1718214634874,-500.0,0.00019178,2]
[329282294,1718214634890,-500.0,0.00019178,2]
[329282295,1718214634902,-500.0,0.00019178,2]
[329282296,1718214634913,-500.0,0.00019178,2]
[329282297,1718214634924,-504.68064139,0.00019178,2]
[329282298,1718214634934,-500.0,0.00019178,2]
[329282299,1718214634945,-500.0,0.00019178,2]
[329282300,1718214634955,-500.0,0.00019178,2]
[329282301,1718214634966,-500.0,0.00019178,2]
[329282302,1718214634976,-500.0,0.00019178,2]
[329282303,1718214634987,-500.0,0.00019178,2]
[329282304,1718214634997,-500.0,0.00019178,2]
[329282305,1718214635009,-500.0,0.00019178,2]
[329282306,1718214635019,-500.0,0.00019178,2]
[329282307,1718214635029,-500.0,0.00019178,2]
[329282308,1718214635040,-500.0,0.00019178,2]
[329282309,1718214635051,-500.0,0.00019178,2]
[329282310,1718214635062,-500.0,0.00019178,2]
[329282311,1718214635072,-500.0,0.00019178,2]
[329282312,1718214635082,-508.69718059,0.00019178,14]
[329282313,1718214635092,-500.0,0.00019178,2]
[329282314,1718214635102,-500.0,0.00019178,2]
[329282315,1718214635112,-500.0,0.00019178,2]
[329282316,1718214635122,-505.02900136,0.00019178,2]
[329282317,1718214635132,-500.0,0.00019178,2]
[329282318,1718214635141,-500.0,0.00019178,2]
[329282319,1718214635151,-467.21947646,0.00019178,2]
[329282320,1718214635162,-500.0,0.00019178,2]
[329282321,1718214635172,-500.0,0.00019178,2]
[329282322,1718214635182,-500.0,0.00019178,2]
[329282323,1718214635192,-500.0,0.00019178,2]
[329282324,1718214635203,-500.0,0.00019178,2]
[329282325,1718214635213,-500.0,0.00019178,2]
[329282326,1718214635224,-636.44188437,0.00019178,2]
[329282327,1718214635236,-500.0,0.00019178,2]
[329282328,1718214635250,-500.0,0.00019178,2]
[329282329,1718214635263,-500.0,0.00019178,2]
[329282330,1718214635274,-500.0,0.00019178,2]
[329282331,1718214635286,-500.0,0.00019178,2]
[329282332,1718214635297,-500.0,0.00019178,2]
[329282333,1718214635307,-500.0,0.00019178,2]
[329282334,1718214635317,-500.0,0.00019178,2]
[329282335,1718214635327,-406.04801447,0.00019178,2]
[329282336,1718214635339,-567.41232457,0.00019178,2]
[329282337,1718214635349,-500.0,0.00019178,2]
[329282338,1718214635361,-500.0,0.00019178,2]
[329282339,1718214635371,-500.0,0.00019178,2]
[329282340,1718214635382,-500.0,0.00019178,2]
[329282341,1718214635393,-500.0,0.00019178,2]
[329282342,1718214635406,-500.0,0.00019178,2]
[329282343,1718214635418,-514.66762318,0.00019178,2]
[329282344,1718214635429,-500.0,0.00019178,2]
[329282345,1718214635442,-500.0,0.00019178,2]
[329282346,1718214635455,-500.0,0.00019178,2]
[329282347,1718214635471,-500.0,0.00019178,2]
[329282348,1718214635481,-500.0,0.00019178,2]
[329282349,1718214635491,-500.0,0.00019178,2]
[329282350,1718214635506,-177.96552191,0.00019178,2]
[329282351,1718214635517,-500.0,0.00019178,2]
[329282352,1718214635528,-500.0,0.00019178,2]
[329282353,1718214635543,-500.0,0.00019178,2]
[329282354,1718214635554,-500.0,0.00019178,2]
[329282355,1718214635567,-548.75603293,0.00019178,2]
[329282356,1718214635578,-500.0,0.00019178,2]
[329282357,1718214635590,-470.0,0.00019178,2]
[329282358,1718214635603,-536.31168264,0.00019178,2]
[329282359,1718214635615,-500.0,0.00019178,2]
[329282360,1718214635626,-500.0,0.00019178,2]
[329282361,1718214635640,-500.0,0.00019178,2]
[329282362,1718214635654,-500.0,0.00019178,2]
[329282363,1718214635664,-500.0,0.00019178,2]
[329282364,1718214635674,-500.0,0.00019178,2]
[329282365,1718214635685,-500.0,0.00019178,2]
[329282366,1718214635695,-506.05667864,0.00019178,2]
[329282367,1718214635705,-505.71714151,0.00019178,2]
[329282368,1718214635715,-500.0,0.00019178,2]
[329282369,1718214635728,-500.0,0.00019178,2]
[329282370,1718214635741,-500.0,0.00019178,2]
[329282371,1718214635764,-500.0,0.00019178,2]
[329282372,1718214635775,-500.0,0.00019178,2]
[329282373,1718214635785,-500.0,0.00019178,2]
[329282374,1718214635797,-500.0,0.00019178,2]
[329282375,1718214635808,-500.0,0.00019178,2]
[329282376,1718214635823,-500.0,0.00019178,2]
[329282377,1718214635834,-500.0,0.00019178,2]
[329282378,1718214635844,-500.0,0.00019178,2]
[329282379,1718214635855,-500.0,0.00019178,2]
[329282380,1718214635866,-500.0,0.00019178,2]
[329282381,1718214635875,-500.0,0.00019178,2]
[329282382,1718214635886,-500.0,0.00019178,2]
[329282383,1718214635895,-500.0,0.00019178,2]
[329282384,1718214635906,-500.0,0.00019178,2]
[329282385,1718214635916,-500.0,0.00019178,2]
[329282386,1718214635927,-500.0,0.00019178,2]
[329282387,1718214635936,-935.59,0.00019178,2]
[329282388,1718214635947,-500.0,0.00019178,2]
[329282389,1718214635956,-500.0,0.00019178,2]
[329282390,1718214635966,-500.0,0.00019178,2]
[329282391,1718214635976,-500.0,0.00019178,2]
[329282392,1718214635985,-500.0,0.00019178,2]
[329282393,1718214635995,-500.0,0.00019178,2]
[329282394,1718214636006,-500.0,0.00019178,2]
[329282395,1718214636016,-500.0,0.00019178,2]
[329282396,1718214636025,-500.0,0.00019178,2]
[329282397,1718214636036,-623.51,0.00019178,2]
[329282398,1718214636047,-500.0,0.00019178,2]
[329282399,1718214636057,-500.0,0.00019178,2]
[329282400,1718214636067,-500.0,0.00019178,2]
[329282401,1718214636077,-500.0,0.00019178,2]
[329282402,1718214636090,-500.0,0.00019178,2]
[329282403,1718214636102,-255.31,0.00019178,2]
[329282404,1718214636114,-428.79,0.00019178,2]
[329282405,1718214636125,-500.0,0.00019178,2]
[329282406,1718214636136,-443.45,0.00019178,2]
[329282407,1718214636147,-500.0,0.00019178,2]
[329282408,1718214636158,-500.0,0.00019178,2]
[329282409,1718214636170,-500.0,0.00019178,2]
[329282410,1718214636180,-500.0,0.00019178,2]
[329282411,1718214636193,-500.0,0.00019178,2]
[329282412,1718214636205,-500.0,0.00019178,2]
[329282413,1718214636217,-500.0,0.00019178,2]
[329282414,1718214636228,-500.0,0.00019178,2]
[329282415,1718214636238,-500.0,0.00019178,2]
[329282416,1718214636250,-500.0,0.00019178,2]
[329282417,1718214636262,-500.0,0.00019178,2]
[329282418,1718214636273,-500.0,0.00019178,2]
[329282419,1718214636283,-500.0,0.00019178,2]
[329282420,1718214636293,-500.0,0.00019178,2]
[329282421,1718214636303,-492.3046021,0.00019178,2]
[329282422,1718214636314,-500.0,0.00019178,2]
[329282423,1718214636325,-500.0,0.00019178,2]
[329282424,1718214636335,-500.0,0.00019178,2]
[329282425,1718214636529,-188.9,0.00019178,2]
[329282426,1718214636543,-500.0,0.00019178,2]
[329282427,1718214636554,-500.0,0.00019178,2]
[329282428,1718214636565,-500.0,0.00019178,2]
[329282429,1718214636575,-500.0,0.00019178,2]
[329282430,1718214636585,-500.0,0.00019178,2]
[329282431,1718214636595,-397.12795657,0.00019178,2]
[329282432,1718214636606,-500.0,0.00019178,2]
[329282433,1718214636616,-500.0,0.00019178,2]
[329282434,1718214636625,-500.0,0.00019178,2]
[329282435,1718214636635,-540.75,0.00019178,2]
[329282436,1718214636649,-851.97,0.00019178,2]
[329282437,1718214636659,-500.0,0.00019178,2]
[329282438,1718214636669,-500.0,0.00019178,2]
[329282439,1718214636679,-366.0899276,0.00019178,2]
[329282440,1718214636690,-500.0,0.00019178,2]
[329282441,1718214636700,-500.0,0.00019178,2]
[329282442,1718214636710,-500.0,0.00019178,2]
[329282443,1718214636721,-500.0,0.00019178,2]
[329282444,1718214636733,-500.0,0.00019178,2]
[329282445,1718214636743,-500.0,0.00019178,2]
[329282446,1718214636770,-500.0,0.00019178,2]
[329282447,1718214636781,-523.32,0.00019178,2]
[329282448,1718214636791,-500.0,0.00019178,2]
[329282449,1718214636803,-500.0,0.00019178,2]
[329282450,1718214636813,-500.0,0.00019178,2]
[329282451,1718214636824,-333.52756425,0.00019178,2]
[329282452,1718214636834,-328.61247349,0.00019178,2]
[329282453,1718214636844,-500.0,0.00019178,2]
[329282454,1718214636854,-500.0,0.00019178,2]
[329282455,1718214636864,-500.0,0.00019178,2]
[329282456,1718214636874,-383.8557262,0.00019178,2]
[329282457,1718214636883,-483.54607361,0.00019178,2]
[329282458,1718214636893,-500.0,0.00019178,2]
[329282459,1718214636903,-182.15896173,0.00019178,2]
[329282460,1718214636912,-500.0,0.00019178,2]
[329282461,1718214636922,-500.0,0.00019178,2]
[329282462,1718214636932,-500.0,0.00019178,2]
[329282463,1718214636942,-500.0,0.00019178,2]
[329282464,1718214636951,-500.0,0.00019178,2]
[329282465,1718214636961,-500.0,0.00019178,2]
[329282466,1718214636970,-246.97213485,0.00019178,2]
[329282467,1718214636981,-500.0,0.00019178,2]
[329282468,1718214636991,-500.0,0.00019178,2]
[329282469,1718214637000,-500.0,0.00019178,2]
[329282470,1718214637013,-501.96641914,0.00019178,2]
[329282471,1718214637027,-500.0,0.00019178,2]
[329282472,1718214637038,-500.0,0.00019178,2]
[329282473,1718214637049,-1716.79702515,0.00019186,2]
[329282474,1718214637060,-155.45,0.00019244,2]
[329282475,1718214637070,-5126.0387,0.00019251,2]
[329282476,1718214637081,-216.18844803,0.00019305,2]
[329282477,1718214637092,-552.37,0.00019315,2]
[329282478,1718214637105,-500.0,0.00019315,2]
[329282479,1718214637116,-242.65,0.00019315,2]
[329282480,1718214637127,-225.49980945,0.00019315,2]
[329282481,1718214637138,-389.00984236,0.00019315,2]
[329282482,1718214637149,-500.0,0.00019315,2]
[329282483,1718214637160,-500.0,0.00019315,2]
[329282484,1718214637170,-500.0,0.00019315,2]
[329282485,1718214637181,-500.0,0.00019315,2]
[329282486,1718214637191,-500.0,0.00019315,2]
[329282487,1718214637202,-500.0,0.00019315,2]
[329282488,1718214637213,-500.0,0.00019315,2]
[329282489,1718214637223,-500.0,0.00019315,2]
[329282490,1718214637234,-505.57181642,0.00019315,2]
[329282491,1718214637244,-500.0,0.00019315,2]
[329282492,1718214637257,-500.0,0.00019315,2]